Cogmind - Beta 10.2 @@@ ROGUE MODE // 2022.01.18 @ 05:19:13 Player: SergeMan Result: Destroyed by D-53 Grenadier with Mini Grenade Launcher Performance ------------- Evolutions (1) 500 Regions Visited (4) 800 Robots Destroyed (79) 395 Value Destroyed (1779) 1779 Prototype IDs (9) 180 Alien Tech Used (0) 0 Bonus (146) 146 TOTAL SCORE: 3800 Bonus ------- High Alert Combat Kills 31 Follower Combat Kills 115 Cogmind --------- Core Integrity 0/400 Matter 251/300 Energy 100/100 System Corruption 0% Temperature Cool (0) Movement Core (600) Ox11 Location -9/Mines Parts ------- > --- POWER (1) -------- (None) > --- PROPULSION (3) --- (None) > --- UTILITY (3) ------ Large Storage Unit Large Storage Unit Improved Signal Interpreter > --- WEAPON (2) ------- Particle Cannon > --- INVENTORY (16) --- Improved Ion Engine Cooling System High-capacity Battery (400) High-capacity Matter Pod (200) Faulty Experimental Sensor Array Medium Armor Plating Medium Armor Plating Scythe Peak State ------------ > --- POWER ------------ Improved Ion Engine > --- PROPULSION ------- Improved Treads Improved Treads Wheel > --- UTILITY ---------- Large Storage Unit Large Storage Unit Hacking Suite > --- WEAPON ----------- Beam Rifle Heavy Assault Rifle > --- INVENTORY -------- Ion Engine Light Ion Engine Light Treads Light Treads Wheel Improved Heat Sink High-capacity Matter Pod Experimental Sensor Array Medium Laser Medium Laser Assault Rifle Assault Rifle Assault Rifle [Rating: 18] Favorites ----------- Power Improved Ion Engine Engine Improved Ion Engine Propulsion Light Treads Treads Light Treads Wheel Wheel Utility Large Storage Unit Device Heat Sink Storage Large Storage Unit Processor Improved Signal Interpreter Hackware Hacking Suite Weapon Medium Laser Energy Gun Medium Laser Energy Cannon Light EM Pulse Cannon Ballistic Gun Heavy Assault Rifle Ballistic Cannon Improved Light Cannon Build | -11 -10 -10 -9 -9 ------- Run | Scr Mat Min Mat Min Slots Evolved 2 | . . . 2 . Power . | . . . . . Propulsion 1 | . . . 1 . Utility 1 | . . . 1 . Weapon . | . . . . . Parts Attached 120 | 9 35 5 57 14 Power 14 | 2 7 1 3 1 Engine 14 | 2 7 1 3 1 Core . | . . . . . Reactor . | . . . . . Propulsion 55 | 3 12 2 31 7 Treads 34 | 1 6 1 23 3 Leg . | . . . . . Wheel 21 | 2 6 1 8 4 Hover . | . . . . . Flight . | . . . . . Utility 12 | 1 5 2 4 . Device 2 | . 1 1 . . Storage 5 | 1 2 1 1 . Processor 3 | . 1 . 2 . Hackware 2 | . 1 . 1 . Protection . | . . . . . Artifact . | . . . . . Weapon 39 | 3 11 . 19 6 Energy Gun 24 | 3 9 . 8 4 Energy Cannon 4 | . . . 3 1 Ballistic Gun 10 | . 2 . 7 1 Ballistic Cannon 1 | . . . 1 . Launcher . | . . . . . Special Weapon . | . . . . . Impact Weapon . | . . . . . Slashing Weapon . | . . . . . Piercing Weapon . | . . . . . Special Melee Weapon . | . . . . . Unidentified Prototypes 2 | . . 1 1 . Parts Lost 21 | . 3 . 5 13 Power 2 | . . . 1 1 Propulsion 6 | . . . 1 5 Utility . | . . . . . Weapon 13 | . 3 . 3 7 Highest Loss Streak 13 | . 1 . 2 13 Average Slot Usage (%) 98 | . 96 99 99 97 Engine 11 | . 13 14 10 11 Treads 21 | . 16 14 23 24 Wheel 9 | . 11 13 9 7 Storage 19 | . 14 13 22 22 Processor 6 | . 1 . 9 11 Hackware 5 | . 10 14 1 . Energy Gun 11 | . 21 14 9 . Energy Cannon 3 | . . . 3 10 Ballistic Gun 6 | . 5 14 6 . Ballistic Cannon 2 | . . . 1 10 Naked Turns . | . . . . . Heaviest Build 47 | 11 41 25 47 47 Greatest Support 66 | 20 40 40 66 60 Greatest Overweight (x) 11 | 3 8 2 4 11 Average Overweight (x) 2 | 1 1 1 3 3 Largest Inventory Capacity 16 | 6 16 10 16 16 Average Capacity 13 | 5 9 9 15 16 Most Carried 16 | 5 10 10 16 16 Average Carried 12 | 3 8 9 14 15 Final Capacity 16 | 6 10 10 16 16 Final Carried 16 | 4 10 10 16 8 Class Distribution -------------------- 53% | Mutant 46% | Scavenger-Mutant Dominant Class ---------------- Mutant | -10/Materials Mutant | -10/Mines Scavenger-Mutant | -9/Materials Mutant | -9/Mines Resources | -11 -10 -10 -9 -9 ----------- Run | Scr Mat Min Mat Min Matter Collected 1946 | 282 308 140 1096 120 Remotely . | . . . . . Salvage Created 2932 | 175 555 48 1900 254 Parts 175 | 10 41 6 104 14 Haulers Intercepted 8 | . 2 . 6 . Recyclers Shooed . | . . . . . Parts Field Recycled . | . . . . . Retrieved Matter . | . . . . . Parts Self-Destructed . | . . . . . Prevented . | . . . . . Kills | -11 -10 -10 -9 -9 ------- Run | Scr Mat Min Mat Min Combat Hostiles Destroyed 55 | . 12 3 34 6 Guns 41 | . 12 3 26 . Cannons 8 | . . . 3 5 AOE 3 | . . . 2 1 Classes Destroyed 10 | 2 5 . 3 . Tunneler 4 | 4 . . . . Hauler 8 | . 2 . 6 . Recycler 3 | 1 . . 2 . Operator 5 | . 2 . 3 . Watcher 4 | . 2 . 2 . Swarmer 20 | . 6 3 11 . Grunt 22 | . 6 . 12 4 Brawler 1 | . . . 1 . Duelist 3 | . . . 1 2 Sentry 9 | . . . 9 . Best Kill Streak 6 | 4 3 2 6 2 Combat Bots Only 6 | . 3 2 6 2 Max Kills in Single Turn 2 | 1 1 2 2 1 Gunslinging 1 | . . 1 1 . Exploded 1 | . . . 1 1 Melee . | . . . . . Uniques/NPCs Destroyed . | . . . . . Combat | -11 -10 -10 -9 -9 -------- Run | Scr Mat Min Mat Min Damage Taken 3097 | 36 417 50 1514 1080 Core 456 | . 53 . 201 202 Absorbed by Shields . | . . . . . Core Remaining (%) 89 | 100 . 78 . . Volleys Fired 226 | 8 59 4 130 25 Largest 2 | 2 2 2 2 2 Hottest 100 | 80 100 70 100 95 Shots Fired 428 | 16 109 8 252 43 Gun 346 | 16 109 8 204 9 Cannon 82 | . . . 48 34 Launcher . | . . . . . Special . | . . . . . Kinetic 159 | . 7 4 126 22 Thermal 80 | . 42 4 34 . Explosive . | . . . . . Electromagnetic 189 | 16 60 . 92 21 Robot Hit Streak 14 | 3 14 5 13 7 Robot Miss Streak 5 | 2 5 2 4 4 Penetration Max . | . . . . . Secondary Targets 8 | . 1 1 6 . Max Gunslinging Chain 1 | . 1 1 1 . Shots Hit Robots 279 | 10 68 4 171 26 Core Hits 106 | 6 26 3 63 8 Critical Hits . | . . . . . Critical Kills . | . . . . . Critical Parts Destroyed . | . . . . . Melee Attacks . | . . . . . Impact . | . . . . . Slashing . | . . . . . Piercing . | . . . . . Sneak Attacks . | . . . . . Combat Hostiles . | . . . . . Follow-up Attacks . | . . . . . Damage Inflicted 4617 | 177 967 59 2880 534 Guns 3012 | 143 836 59 1960 14 Cannons 1303 | . . . 829 474 Explosions 291 | 34 120 . 91 46 Melee . | . . . . . Ramming 11 | . 11 . . . Kinetic 1349 | . 46 21 1084 198 Thermal 1016 | 34 448 38 450 46 Explosive . | . . . . . Electromagnetic 2241 | 143 462 . 1346 290 Impact . | . . . . . Slashing . | . . . . . Piercing . | . . . . . Highest Corruption . | . . . . . Average Corruption . | . . . . . Corruption Purged . | . . . . . Overload Shots . | . . . . . Overflow Damage 44 | 4 14 . 19 7 Projectiles 12 | . . . 5 7 Explosions 32 | 4 14 . 14 . Melee . | . . . . . Knockbacks 7 | . 1 . . 6 Impact 1 | . 1 . . . Kinetic 5 | . . . . 5 Secondary 1 | . . . . 1 Self-Inflicted Damage 183 | 36 37 . 74 36 Shots 5 | 1 1 . 2 1 Rammed 3 | 2 1 . . . Targets Rammed 3 | 2 1 . . . Kicked . | . . . . . Crushed . | . . . . . Highest Temperature 258 | 48 190 27 258 174 Average Temperature 53 | 19 43 12 61 64 Received Heat Transfer 429 | . 93 . 318 18 Siege Activations . | . . . . . Robots Corrupted 3 | . . . 3 . Combat Hostiles 3 | . . . 3 . Parts Fried 15 | 1 2 . 12 . Impact Corruptions . | . . . . . Robots Melted . | . . . . . Combat Hostiles . | . . . . . Parts Melted 1 | . 1 . . . Heat Transferred 2237 | 50 1112 111 914 50 Parts Sabotaged . | . . . . . Parts Stolen . | . . . . . Parts Stripped . | . . . . . Power Chain Reactions 6 | 1 2 . 2 1 Missiles Intercepted . | . . . . . Alert | -11 -10 -10 -9 -9 ------- Run | Scr Mat Min Mat Min Peak Influence 471 | 25 260 101 471 244 Initial 134 | . 16 16 20 134 Average 197 | 8 125 78 274 171 Maximum Alert Level 2 | . 1 . 2 1 Low Security (%) 56 | 100 80 100 30 62 Level 1 39 | . 19 . 59 37 Level 2 4 | . . . 9 . Level 3 . | . . . . . Level 4 . | . . . . . Level 5 . | . . . . . High Security . | . . . . . Max Security . | . . . . . Squads Dispatched 11 | . 3 . 8 . Investigation 5 | . 1 . 4 . Extermination . | . . . . . Reinforcement 6 | . 2 . 4 . Assault . | . . . . . Garrison . | . . . . . Intercept . | . . . . . Construction Impeded . | . . . . . Haulers Reinforced . | . . . . . Stealth | -11 -10 -10 -9 -9 --------- Run | Scr Mat Min Mat Min Distress Signals 5 | . 1 . 4 . Communications Jammed . | . . . . . Distress Signals . | . . . . . Times Spotted 92 | . 22 5 54 11 Peak Tracking Total 6 | . 3 3 6 3 Tactical Retreats 9 | . 3 1 3 2 Traps | -11 -10 -10 -9 -9 ------- Run | Scr Mat Min Mat Min Traps Triggered 8 | . 5 . 3 . Indirectly . | . . . . . Trap Hack Attempts . | . . . . . Triggered . | . . . . . Disarmed . | . . . . . Reprogrammed . | . . . . . Reused . | . . . . . Traps Extracted . | . . . . . Installed . | . . . . . Triggered . | . . . . . Machines | -11 -10 -10 -9 -9 ---------- Run | Scr Mat Min Mat Min Machines Disabled 3 | . . . 3 . Max in Single Turn 1 | . . . 1 . Machines Sabotaged . | . . . . . Garrisons Compromised . | . . . . . Overloaded Fab Kills . | . . . . . Fab Network Shutdowns . | . . . . . Hacking | -11 -10 -10 -9 -9 --------- Run | Scr Mat Min Mat Min Machines Accessed 21 | . 8 . 12 1 Terminals 14 | . 5 . 8 1 Fabricators . | . . . . . Repair Stations 3 | . 1 . 2 . Recycling Units 2 | . 2 . . . Scanalyzers 2 | . . . 2 . Garrison Access . | . . . . . Total Hacks 76 | . 21 . 49 6 Successful 59 | . 16 . 40 3 Failed 17 | . 5 . 9 3 Catastrophic 2 | . . . 1 1 Database Lockouts . | . . . . . Manual 25 | . 8 . 12 5 Terminals 47 | . 16 . 25 6 Fabricators . | . . . . . Repair Stations 9 | . 2 . 7 . Recycling Units 3 | . 3 . . . Scanalyzers 17 | . . . 17 . Garrison Access . | . . . . . Terminal Hacks 20 | . 6 . 12 2 Robot Analysis 1 | . . . 1 . Prototype ID Bank 4 | . 2 . 2 . Alert Level 1 | . . . 1 . Unreport Threat 2 | . . . 2 . Locate Traps 8 | . 4 . 3 1 Zone Layout 4 | . . . 3 1 Fabricator Hacks . | . . . . . Repair Station Hacks 9 | . 2 . 7 . Scan Component 5 | . 1 . 4 . Repair 4 | . 1 . 3 . Recycling Unit Hacks 3 | . 3 . . . Report Inventory 2 | . 2 . . . Retrieve Components 1 | . 1 . . . Scanalyzer 16 | . . . 16 . Insert Component 8 | . . . 8 . Analyze 8 | . . . 8 . Garrison Access Hacks . | . . . . . Unauthorized Hacks 11 | . 5 . 5 1 Terminals 11 | . 5 . 5 1 Track 1 | . 1 . . . Botnet 10 | . 4 . 5 1 Fabricators . | . . . . . Repair Stations . | . . . . . Recycling Units . | . . . . . Scanalyzers . | . . . . . Garrison Access . | . . . . . Data Cores Recovered . | . . . . . Used . | . . . . . Hacking Detections 18 | . 6 . 11 1 Full Trace Events 8 | . 2 . 6 . Feedback Events . | . . . . . Feedback Blocked . | . . . . . Robot Schematics Acquired . | . . . . . Robots Built . | . . . . . Matter . | . . . . . Time . | . . . . . Total Robot Build Rating . | . . . . . Part Schematics Acquired 8 | . . . 8 . Parts Built . | . . . . . Matter . | . . . . . Time . | . . . . . Total Part Build Rating . | . . . . . Parts Repaired 4 | . 1 . 3 . Time 148 | . 13 . 135 . Parts Recycled . | . . . . . Recycled Matter . | . . . . . Retrieved Matter . | . . . . . Retrieved Components 7 | . 7 . . . Parts Scanalyzed 8 | . . . 8 . Part Schematics Acquired 8 | . . . 8 . Parts Damaged 2 | . . . 2 . Bothacking | -11 -10 -10 -9 -9 ------------ Run | Scr Mat Min Mat Min Used RIF Installer . | . . . . . Robots Hacked . | . . . . . Non-combat . | . . . . . Combat . | . . . . . Robot Hacks Applied . | . . . . . Relay Couplers Released . | . . . . . Robots Rewired . | . . . . . Allies Hacked . | . . . . . Hacks Repelled . | . . . . . Allies | -11 -10 -10 -9 -9 -------- Run | Scr Mat Min Mat Min Total Allies 2 | . . 2 . . Largest Group 2 | . . 2 2 . Highest-Rated Group 46 | . . 46 46 . Highest-Rated Ally 31 | . . 31 31 . Total Orders . | . . . . . Ally Attacks 33 | . . 3 30 . Total Damage 364 | . . 20 344 . Kills 8 | . . 1 7 . Allies Corrupted . | . . . . . Allies Melted . | . . . . . Intel | -11 -10 -10 -9 -9 ------- Run | Scr Mat Min Mat Min Robot Analysis Total 1 | . . . 1 . Derelict Logs Recovered 2 | . . 1 . 1 Drone Launches . | . . . . . Drone Recoveries . | . . . . . Exploration | -11 -10 -10 -9 -9 ------------- Run | Scr Mat Min Mat Min Turns Passed 5345 | 112 1264 613 2666 690 Spaces Moved 3325 | 69 842 539 1457 418 Core 20 | 18 1 . . 1 Treads 552 | 1 188 7 269 87 Legs . | . . . . . Wheels 2753 | 50 653 532 1188 330 Hover . | . . . . . Flight . | . . . . . Fastest Speed 50 | 50 90 80 110 120 Average Speed 119 | 95 114 100 128 129 Slowest Speed 600 | 200 450 180 200 600 Overloaded Moves . | . . . . . Propulsion Burnouts . | . . . . . Robots Hopped . | . . . . . Cave-ins Triggered . | . . . . . Exploration Rate (%) 72 | 4 99 99 98 63 Regions Visited 4 Branch Regions 2 Pre-discovered Areas 3 | . . 2 . 1 Known Exits Taken 2 | . 1 . 1 . Unknown Exits Taken 2 | 1 . 1 . . Scrap Searched 6 | . . 3 . 3 Spaces Dug . | . . . . . Terrain Destroyed 16 | . 3 . 7 6 Melee . | . . . . . Projectile . | . . . . . AOE 16 | . 3 . 7 6 Terrain Rammed . | . . . . . Walls Destroyed . | . . . . . Machines Disabled . | . . . . . Actions | -11 -10 -10 -9 -9 --------- Run | Scr Mat Min Mat Min Total 4236 | 93 1029 600 1989 525 Wait 459 | 1 70 41 284 63 Move 3321 | 68 841 538 1456 418 Hop . | . . . . . Pick Up 52 | 3 10 8 30 1 Fast Attach 35 | 6 19 2 7 1 Attach 19 | . 3 . 9 7 Detach 3 | . 1 . 2 . Swap 66 | 3 13 3 41 6 Drop 52 | 2 12 4 30 4 Fire 226 | 8 59 4 130 25 Melee . | . . . . . Ram 3 | 2 1 . . . Kick . | . . . . . Crush . | . . . . . Escape Stasis . | . . . . . Rewire . | . . . . . Trap . | . . . . . Miscellaneous . | . . . . . Route ------- -11/Scrapyard -10/Materials (discovered 5 exits: *Mat x3 / *Min x2) -10/Mines (discovered 2 exits: *Mat x2) -9/Materials (discovered 5 exits: *Mat x3 / *Min x2) -9/Mines (discovered 2 exits: *Mat / *Exi) History --------- Turn | Location | Event 24 | -11/Scrapyard | Discovered new exit (range 16) 113 | -11/Scrapyard | Entered Materials 210 | -10/Materials | Repaired EM Pulse Gun 311 | -10/Materials | Build established: Mutant 376 | -10/Materials | Discovered new exit (range 14) 432 | -10/Materials | Identified exit to Mines 514 | -10/Materials | Discovered new exit (range 9) 967 | -10/Materials | Discovered new exit (range 7) 1018 | -10/Materials | Discovered exit to Mines (range 12) 1268 | -10/Materials | Discovered new exit (range 7) 1377 | -10/Materials | Entered Mines 1432 | -10/Mines | Found a damaged Exp. Sensor Array with a note attached 1435 | -10/Mines | Found Prototype Device 1438 | -10/Mines | Identified Exp. Sensor Array 1718 | -10/Mines | Learned location of Storage (-8) 1720 | -10/Mines | Discovered new exit (range 3) 1761 | -10/Mines | Learned location of Zion (-6) 1953 | -10/Mines | Discovered new exit (range 4) 1990 | -10/Mines | Entered Materials 1990 | -9/Materials | Accompanied by 2 allies 1990 | -9/Materials | Evolved 2 slots: Propulsion x1, Utility x1 1995 | -9/Materials | Led the pair of lost Derelicts to an unsafe place 2277 | -9/Materials | Discovered new exit (range 9) 2518 | -9/Materials | Discovered new exit (range 9) 2529 | -9/Materials | Identified exit to Mines 2771 | -9/Materials | Build established: Scavenger-Mutant 3157 | -9/Materials | Discovered new exit (range 15) 3174 | -9/Materials | Identified exit to Materials 3654 | -9/Materials | Discovered exit to Materials (range 7) 3971 | -9/Materials | Repaired Shock Rifle 4073 | -9/Materials | Repaired Broken Lgt. EM Pulse Cannon 4127 | -9/Materials | Repaired Broken Scythe 4160 | -9/Materials | Discovered exit to Materials (range 8) 4184 | -9/Materials | Core integrity fell below 50% 4656 | -9/Materials | Entered Mines 4828 | -9/Mines | Discovered exit to Materials (range 8) 5171 | -9/Mines | Deemed a non-threat by the Exiles lab entrance 5173 | -9/Mines | Discovered new exit (range 5) 5179 | -9/Mines | Identified exit to Exiles 5276 | -9/Mines | Assembled infested the area 5330 | -9/Mines | Core integrity fell below 20% 5346 | -9/Mines | Destroyed by D-53 Grenadier with Mini Grenade Launcher Last Messages --------------- 05317_ Lgt. Treads destroyed. 05317_ Wheel destroyed. 05318_ The unstable cave ceiling collapses. 05318_ Imp. Light Cannon destroyed. 05319_ Dropped Shock Rifle. 05321_ The unstable cave ceiling collapses. 05323_ Acquired Shock Rifle. 05325_ The unstable cave ceiling collapses. 05326_ Acquired Shock Rifle. 05327_ Shock Rifle destroyed. 05327_ Wheel destroyed. 05328_ The unstable cave ceiling collapses. 05330_ U-05 Engineer builds a Wall. 05331_ Laser Drill disabled. 05334_ The unstable cave ceiling collapses. 05335_ Hvy. Assault Rifle destroyed. 05336_ The unstable cave ceiling collapses. 05340_ Shock Rifle destroyed. 05340_ Imp. Ion Engine destroyed. 05341_ The unstable cave ceiling collapses. Map ----- +----------------------------------------------------+ | ????????????????????????????????? | | ????????????????????????????????? | | ????????????????????????????????? | | ????????????????????????????????? | | ????????????????????????????????? | | ????????????????????????????????? | | ????????????????????????????????? | | ????????????????????????????????? | | ????????????????????????????????? | | ????????????????????????????????? | | ????????????????????????????????? | | ????????????????????????????????? | | ????????????????????????????????? | | ????????????????????????????????? | | ????????????????????????????????? | | ????????????????????????????????? | | ????????????????????????????????? | | ??????????????????????########??? | | ????##????????????????# #??? | | ??### ????#???????????#""" #??? | | ?? ??? ##?????????#""" #??? | | ?? ?? ##????????#"" #??? | | ??# ??? ###?????## ###? | | ??# ? ####?## # #? | | ??## ?? ### # #? | | ?## ??? # @ #? | | ?# ???# # #? | | ?# #### #? | | ??# ## # # # # #? | | ???# ### # ##? | | ????# #?# ##?? | | #???## ## ##?? | | ####### d# #??? | | %= ### # #??? | | * # #??? | | ###### " ##??? | | ##????# "%"##### ######???? | | #?????## ##????### ##?????????? | | ???????## #???????##???????????? | | ????????# ######???????????????? | | ????????# #????#########??? | | ????????#### ## #????# #??? | | ???????????# ## #????# #??? | | ???????????# ## #????# < #??? | | ???????????# ## ###### #??? | | ???????????# ## """ #??? | | ???????????# ######### """ #??? | | ???????????# #???????# """ #??? | | ???????????# #???????# #??? | | ???????????# #???????##T######??? | +----------------------------------------------------+ Best States ------------- Heat Dissipation 35 Energy Generation 12 Energy Capacity 265 Matter Stores 300 Matter Capacity 300 Sight Range 16 Terrain Scan Density 10 Evasion (%) 42 Recoil Reduction 3 Offensive Hacking 10 Item Schematics ----------------- Lgt. EM Pulse Cannon | -9/Materials | Scanalyzed Imp. Ion Engine | -9/Materials | Scanalyzed Exp. Sensor Array | -9/Materials | Scanalyzed Imp. Assault Rifle | -9/Materials | Scanalyzed Shock Rifle | -9/Materials | Scanalyzed Particle Cannon | -9/Materials | Scanalyzed Scythe | -9/Materials | Scanalyzed Imp. Heat Sink | -9/Materials | Scanalyzed Robot Schematics ------------------ None Fabricated ------------ Nothing Alien Tech Used ----------------- None Achievements -------------- None Challenges ------------ None Game ------ Seed AccelerationMetafieldSystem Manual? 0 Play Time 01:05:46 Cumulative 50.7 hours Start 2022.01.18 @ 04:11:05 End 2022.01.18 @ 05:19:13 Sessions 1 Manual Loads 0 Difficulty Rogue Special Mode None Game No. 40 Rogue 40 Adventurer 0 Explorer 0 Win Type - Total 0 Types 0/0/0/0/0/0/0/0/0 Lore% 17 Gallery% 26 Achievement% 21 Wizard Run 0 Options --------- ASCII 0 Keyboard 0 Movement Numpad Keybinds 0 Fullscreen 1 Font 24/Smallcaps Map View 76x50 Tactical HUD 1 Map Filters NONE Filters NONE Steam 1 RUN: 8d71959d-2628-4109-ae63-a41c47e6e396